[Event "Kragero Resort International 2022"]
[Site "Kragero"]
[Date "2022.02.26"]
[Round "8.28"]
[White "Sorensen, Simen"]
[Black "Thanke, Bror"]
[Result "1-0"]
[ECO "E16"]
[WhiteElo "2014"]
[BlackElo "2143"]
[Annotator "NA"]
[PlyCount "71"]
[EventDate "2022.02.23"]
[EventType "swiss"]
[EventCountry "NOR"]
[SourceTitle "playchess.com"]
[Source "ChessBase"]
[SourceQuality "1"]
[TimeControl "5400+30"]

1. d4 {[%emt 0:01:55]} Nf6 {[%emt 0:00:08]} 2. c4 {[%emt 0:00:27]} e6 {[%emt 0:00:14]} 3. Nf3 {[%emt 0:00:35]} Bb4+ {[%emt 0:00:10]} 4. Bd2 {[%emt 0:00:07]} Qe7 {[%emt 0:00:34]} 5. g3 {[%emt 0:00:11]} b6 {[%emt 0:01:43]} 6. Bg2 {[%emt 0:00:59]} Bb7 {[%emt 0:00:07]} 7. O-O {[%emt 0:00:16]} Bxd2 {[%emt 0:00:13]} 8. Qxd2 {[%emt 0:01:11]} d6 {[%emt 0:01:59]} 9. Nc3 {[%emt 0:00:53]} Ne4 {[%emt 0:06:15]} 10. Nxe4 {[%emt 0:05:43]} Bxe4 {[%emt 0:00:06]} 11. Ne1 {[%emt 0:06:15]} Bxg2 {[%emt 0:00:14]} 12. Nxg2 {[%emt 0:00:12]} c5 {[%emt 0:03:32]} 13. d5 {[%emt 0:03:18]} e5 {[%emt 0:00:14]} 14. e4 {[%emt 0:00:38]} Nd7 {[%emt 0:01:37]} 15. Rae1 {[%emt 0:06:32]} Kd8 {[%emt 0:07:36]} 16. Ne3 {[%emt 0:05:31]} g6 {[%emt 0:00:33]} 17. Nc2 {[%emt 0:02:48]} Kc7 {[%emt 0:03:09]} 18. b4 {[%emt 0:07:46]} Rhf8 {[%emt 0:09:05]} 19. a4 {[%emt 0:04:50]} f5 {[%emt 0:00:28]} 20. a5 {[%emt 0:00:47]} fxe4 {[%emt 0:04:33]} 21. Rxe4 {[%emt 0:02:32]} Qf6 {[%emt 0:01:55]} 22. Ra1 {[%emt 0:03:17]} cxb4 {[%emt 0:05:34]} 23. Nxb4 {[%emt 0:01:29]} Nc5 {[%emt 0:00:17]} 24. Re3 {[%emt 0:00:29]} bxa5 {[%emt 0:35:18]} 25. Nc6 {[%emt 0:11:41]} a4 {[%emt 0:00:43]} 26. Qa5+ {[%emt 0:01:48]} Kc8 {[%emt 0:01:45]} 27. Ra2 {[%emt 0:03:13]} Qg7 {[%emt 0:06:45]} 28. Rb2 {[%emt 0:09:25]} Qc7 {[%emt 0:00:25]} 29. Qc3 {[%emt 0:01:14]} Rf7 {[%emt 0:00:49]} 30. f4 {[%emt 0:04:46]} Nd7 {[%emt 0:04:18]} 31. c5 {[%emt 0:02:37]} Nxc5 {[%emt 0:00:57]} 32. fxe5 {[%emt 0:00:13]} Rf8 {[%emt 0:01:54]} 33. exd6 {[%emt 0:06:44]} Qxd6 {[%emt 0:00:49]} 34. Qg7 {[%emt 0:03:54]} Nd7 {[%emt 0:02:03]} 35. Rc3 {[%emt 0:01:05]} Qf6 {[%emt 0:00:58]} 36. Ne5+ {[%emt 0:00:53]} 1-0

[Event "Kragero Resort International 2022"]
[Site "Kragero"]
[Date "2022.02.27"]
[Round "9.1"]
[White "Ostensen, Nicolai Maxime"]
[Black "Engeset, Audun"]
[Result "1-0"]
[ECO "A28"]
[WhiteElo "1728"]
[BlackElo "1823"]
[Annotator "NA"]
[PlyCount "93"]
[EventDate "2022.02.23"]
[EventType "swiss"]
[EventCountry "NOR"]
[SourceTitle "playchess.com"]
[Source "ChessBase"]
[SourceQuality "1"]
[TimeControl "5400+30"]

1. c4 {[%emt 0:00:04]} e5 {[%emt 0:00:21]} 2. Nc3 {[%emt 0:00:05]} Nf6 {[%emt 0:00:19]} 3. Nf3 {[%emt 0:00:04]} Nc6 {[%emt 0:00:25]} 4. e3 {[%emt 0:00:14]} Bb4 {[%emt 0:02:09]} 5. Nd5 {[%emt 0:00:34]} a5 {[%emt 0:02:24]} 6. Nxb4 {[%emt 0:03:06]} axb4 {[%emt 0:00:12]} 7. b3 {[%emt 0:01:13]} O-O {[%emt 0:01:59]} 8. Bb2 {[%emt 0:00:49]} Re8 {[%emt 0:01:17]} 9. d4 {[%emt 0:03:11]} exd4 {[%emt 0:03:10]} 10. Nxd4 {[%emt 0:00:48]} Ne5 {[%emt 0:02:48]} 11. Nf3 {[%emt 0:02:23]} Nc6 {[%emt 0:03:21]} 12. Be2 {[%emt 0:01:16]} Qe7 {[%emt 0:03:59]} 13. O-O {[%emt 0:00:51]} Ra5 {[%emt 0:04:07]} 14. Qc1 {[%emt 0:03:43]} d6 {[%emt 0:02:05]} 15. a3 {[%emt 0:00:36]} bxa3 {[%emt 0:05:30]} 16. Rxa3 {[%emt 0:00:17]} Bg4 {[%emt 0:04:19]} 17. Rxa5 {[%emt 0:00:35]} Nxa5 {[%emt 0:00:10]} 18. Qc3 {[%emt 0:00:18]} Nc6 {[%emt 0:03:48]} 19. h3 {[%emt 0:00:48]} Bd7 {[%emt 0:00:36]} 20. Ra1 {[%emt 0:01:00]} Qf8 {[%emt 0:09:31]} 21. Bd3 {[%emt 0:05:41]} Ne5 {[%emt 0:05:19]} 22. Nxe5 {[%emt 0:00:19]} dxe5 {[%emt 0:00:09]} 23. b4 {[%emt 0:00:38]} Qe7 {[%emt 0:11:25]} 24. Ra7 {[%emt 0:01:22]} Bc8 {[%emt 0:01:07]} 25. Ra5 {[%emt 0:01:43]} Nd7 {[%emt 0:00:50]} 26. Bf5 {[%emt 0:04:16]} f6 {[%emt 0:01:55]} 27. Be4 {[%emt 0:01:14]} c6 {[%emt 0:05:52]} 28. Ra7 {[%emt 0:00:58]} Qd6 {[%emt 0:01:19]} 29. c5 {[%emt 0:01:49]} Qd1+ {[%emt 0:01:40]} 30. Kh2 {[%emt 0:00:08]} Nf8 {[%emt 0:01:31]} 31. Ra1 {[%emt 0:04:10]} Qd7 {[%emt 0:02:03]} 32. Qb3+ {[%emt 0:00:57]} Qe6 {[%emt 0:00:58]} 33. Qc2 {[%emt 0:00:42]} Rd8 {[%emt 0:02:08]} 34. Ra8 {[%emt 0:00:49]} Qe7 {[%emt 0:00:57]} 35. Ra7 {[%emt 0:04:21]} Qd7 {[%emt 0:01:37]} 36. Bc3 {[%emt 0:01:36]} Qc7 {[%emt 0:03:34]} 37. Qb2 {[%emt 0:03:39]} Qb8 {[%emt 0:00:44]} 38. Ra1 {[%emt 0:00:58]} Bd7 {[%emt 0:01:13]} 39. Qa2+ {[%emt 0:04:23]} Be6 {[%emt 0:01:00]} 40. Qa7 {[%emt 0:02:40]} Qxa7 {[%emt 0:02:11]} 41. Rxa7 {[%emt 0:00:06]} Rd7 {[%emt 0:01:47]} 42. b5 {[%emt 0:04:11]} Bd5 {[%emt 0:01:38]} 43. Bxd5+ {[%emt 0:01:33]} cxd5 {[%emt 0:00:53]} 44. b6 {[%emt 0:01:35]} d4 {[%emt 0:04:16]} 45. exd4 {[%emt 0:00:06]} exd4 {[%emt 0:00:06]} 46. Bd2 {[%emt 0:00:03]} Ne6 {[%emt 0:02:07]} 47. c6 {[%emt 0:00:11]} 1-0

[Event "Kragero Resort International 2022"]
[Site "Kragero"]
[Date "2022.02.27"]
[Round "9.2"]
[White "Bjarnason, Snorri Vikanes"]
[Black "Haug, Havard"]
[Result "1/2-1/2"]
[ECO "B71"]
[WhiteElo "1606"]
[BlackElo "1801"]
[Annotator "NA"]
[PlyCount "94"]
[EventDate "2022.02.23"]
[EventType "swiss"]
[EventCountry "NOR"]
[SourceTitle "playchess.com"]
[Source "ChessBase"]
[SourceQuality "1"]
[TimeControl "5400+30"]

1. e4 {[%emt 0:01:07]} c5 {[%emt 0:01:01]} 2. Nf3 {[%emt 0:00:14]} d6 {[%emt 0:00:14]} 3. d4 {[%emt 0:00:10]} cxd4 {[%emt 0:00:05]} 4. Nxd4 {[%emt 0:00:06]} Nf6 {[%emt 0:00:05]} 5. Nc3 {[%emt 0:01:50]} g6 {[%emt 0:00:38]} 6. f4 {[%emt 0:04:01]} Nc6 {[%emt 0:02:08]} 7. Be2 {[%emt 0:06:41]} Nxd4 {[%emt 0:04:00]} 8. Qxd4 {[%emt 0:00:13]} Bg7 {[%emt 0:00:43]} 9. Qd3 {[%emt 0:08:29]} O-O {[%emt 0:02:39]} 10. Be3 {[%emt 0:00:53]} Bg4 {[%emt 0:06:48]} 11. Rd1 $11 {[%emt 0:03:05]} Qa5 {[%emt 0:04:20]} 12. O-O {[%emt 0:01:01]} Rac8 {[%emt 0:04:57]} 13. Bd4 {[%emt 0:03:29]} e5 {[%emt 0:08:26]} 14. Be3 {[%emt 0:04:59]} Bxe2 {[%emt 0:01:33]} 15. Qxe2 {[%emt 0:00:30]} exf4 {[%emt 0:05:57]} 16. Bd4 {[%emt 0:02:01]} Rfe8 {[%emt 0:08:46]} 17. Qf3 {[%emt 0:04:03]} Nh5 {[%emt 0:12:03]} 18. Bxg7 {[%emt 0:00:29]} Kxg7 {[%emt 0:00:37]} 19. Kh1 {[%emt 0:05:29]} Qe5 {[%emt 0:04:30]} 20. Rd5 {[%emt 0:00:49]} Qe6 {[%emt 0:00:50]} 21. Rxh5 {[%emt 0:04:32]} gxh5 {[%emt 0:00:10]} 22. Qxh5 {[%emt 0:01:30]} Qg6 {[%emt 0:02:49]} 23. Qh4 {[%emt 0:01:55]} Re5 {[%emt 0:04:27]} 24. Qxf4 {[%emt 0:04:04]} b5 {[%emt 0:01:51]} 25. Rf3 {[%emt 0:01:47]} Rg5 {[%emt 0:01:58]} 26. Qd2 {[%emt 0:01:44]} Re8 {[%emt 0:02:38]} 27. Qd4+ {[%emt 0:00:24]} Ree5 {[%emt 0:00:14]} 28. g3 {[%emt 0:02:13]} a5 {[%emt 0:00:37]} 29. a3 {[%emt 0:00:50]} h5 {[%emt 0:01:32]} 30. Rf4 {[%emt 0:00:53]} Rg4 {[%emt 0:02:49]} 31. Rxg4 {[%emt 0:03:42]} hxg4 {[%emt 0:01:31]} 32. Kg1 {[%emt 0:03:46]} Kh7 {[%emt 0:03:27]} 33. Nd5 {[%emt 0:00:32]} f5 {[%emt 0:02:26]} 34. Nf4 {[%emt 0:04:05]} Qg7 {[%emt 0:01:47]} 35. Qxd6 {[%emt 0:01:01]} Rxe4 {[%emt 0:00:47]} 36. Kf1 {[%emt 0:01:21]} Qf7 {[%emt 0:01:43]} 37. b3 {[%emt 0:01:47]} a4 {[%emt 0:00:39]} 38. Nd5 {[%emt 0:01:14]} Kg7 {[%emt 0:00:34]} 39. Nc3 {[%emt 0:02:45]} axb3 {[%emt 0:00:57]} 40. cxb3 {[%emt 0:00:37]} Re6 {[%emt 0:00:54]} 41. Qd3 {[%emt 0:01:41]} Rf6 {[%emt 0:01:45]} 42. Qxb5 {[%emt 0:00:58]} f4 {[%emt 0:02:01]} 43. Qg5+ {[%emt 0:01:23]} Kf8 {[%emt 0:00:32]} 44. Nd5 {[%emt 0:00:51]} Rd6 {[%emt 0:01:14]} 45. Nxf4 {[%emt 0:00:12]} Qxb3 {[%emt 0:00:25]} 46. Ng6+ {[%emt 0:01:55]} Rxg6 {[%emt 0:00:15]} 47. Qxg6 {[%emt 0:00:13]} Qd1+ {[%emt 0:00:03]} 1/2-1/2

[Event "Kragero Resort International 2022"]
[Site "Kragero"]
[Date "2022.02.27"]
[Round "9.3"]
[White "Stromhaug, Kristoffer Wang"]
[Black "Jonsson, Kristjan Dagur"]
[Result "1-0"]
[ECO "B15"]
[WhiteElo "1694"]
[BlackElo "1797"]
[Annotator "NA"]
[PlyCount "129"]
[EventDate "2022.02.23"]
[EventType "swiss"]
[EventCountry "NOR"]
[SourceTitle "playchess.com"]
[Source "ChessBase"]
[SourceQuality "1"]
[TimeControl "5400+30"]

1. e4 {[%emt 0:00:03]} c6 {[%emt 0:00:13]} 2. d4 {[%emt 0:00:14]} d5 {[%emt 0:00:10]} 3. Nc3 {[%emt 0:00:21]} dxe4 {[%emt 0:00:15]} 4. Nxe4 {[%emt 0:00:19]} Nf6 {[%emt 0:01:23]} 5. Nxf6+ {[%emt 0:00:05]} exf6 {[%emt 0:00:26]} 6. c3 {[%emt 0:01:19]} Bd6 {[%emt 0:00:36]} 7. Nf3 {[%emt 0:04:15]} O-O {[%emt 0:00:28]} 8. Be2 {[%emt 0:00:42]} Re8 {[%emt 0:00:55]} 9. O-O {[%emt 0:01:24]} Nd7 {[%emt 0:02:30]} 10. Re1 {[%emt 0:08:59]} Nf8 {[%emt 0:03:17]} 11. Bd3 {[%emt 0:09:06]} Rxe1+ {[%emt 0:03:02]} 12. Nxe1 {[%emt 0:00:41]} Ng6 {[%emt 0:03:37]} 13. g3 {[%emt 0:03:08]} Be6 {[%emt 0:05:02]} 14. Ng2 {[%emt 0:05:10]} Qd7 {[%emt 0:05:31]} 15. Qc2 {[%emt 0:03:02]} Kh8 {[%emt 0:03:56]} 16. Bd2 {[%emt 0:08:26]} Rd8 {[%emt 0:03:45]} 17. f4 {[%emt 0:04:11]} Ne7 {[%emt 0:04:11]} 18. Be3 {[%emt 0:02:27]} Bf5 {[%emt 0:04:16]} 19. Bf2 {[%emt 0:03:51]} Bc7 {[%emt 0:01:31]} 20. Re1 {[%emt 0:02:42]} Bxd3 {[%emt 0:03:30]} 21. Qxd3 {[%emt 0:00:10]} Nf5 {[%emt 0:01:41]} 22. Ne3 {[%emt 0:02:07]} Nd6 {[%emt 0:01:42]} 23. Nc4 {[%emt 0:01:52]} Nf5 {[%emt 0:09:37]} 24. Ne3 {[%emt 0:01:58]} Ne7 {[%emt 0:01:34]} 25. Nc2 {[%emt 0:06:43]} f5 {[%emt 0:03:15]} 26. Ne3 {[%emt 0:04:44]} Kg8 {[%emt 0:04:36]} 27. Rd1 {[%emt 0:02:15]} b5 {[%emt 0:07:54]} 28. b3 {[%emt 0:03:25]} a6 {[%emt 0:01:05]} 29. a4 {[%emt 0:05:25]} Bb6 {[%emt 0:01:08]} 30. axb5 {[%emt 0:00:07]} axb5 {[%emt 0:00:41]} 31. Nc2 {[%emt 0:02:33]} Nd5 {[%emt 0:05:13]} 32. Ne3 {[%emt 0:00:14]} Nxe3 {[%emt 0:03:15]} 33. Bxe3 {[%emt 0:00:25]} Qe6 {[%emt 0:00:38]} 34. c4 {[%emt 0:01:57]} bxc4 {[%emt 0:00:41]} 35. bxc4 {[%emt 0:00:09]} Qe4 {[%emt 0:03:27]} 36. Kf2 {[%emt 0:01:58]} Ra8 {[%emt 0:00:20]} 37. Qxe4 {[%emt 0:01:08]} fxe4 {[%emt 0:00:13]} 38. Rd2 {[%emt 0:00:13]} Ra3 {[%emt 0:01:18]} 39. c5 {[%emt 0:02:21]} Ba5 {[%emt 0:00:43]} 40. Rb2 {[%emt 0:01:24]} Kf8 {[%emt 0:01:23]} 41. Ke2 {[%emt 0:02:24]} Ke7 {[%emt 0:00:28]} 42. f5 {[%emt 0:01:35]} Bc3 {[%emt 0:01:17]} 43. Rb7+ {[%emt 0:00:05]} Kf6 {[%emt 0:00:37]} 44. g4 {[%emt 0:00:16]} Ra2+ {[%emt 0:02:14]} 45. Kd1 {[%emt 0:01:37]} Rxh2 {[%emt 0:00:40]} 46. Rc7 {[%emt 0:00:28]} Rh3 {[%emt 0:00:47]} 47. Rxc6+ {[%emt 0:00:49]} Ke7 {[%emt 0:00:12]} 48. Ke2 {[%emt 0:00:23]} h5 {[%emt 0:02:27]} 49. Rc7+ {[%emt 0:03:22]} Ke8 {[%emt 0:00:48]} 50. g5 {[%emt 0:01:30]} Rf3 {[%emt 0:01:55]} 51. g6 {[%emt 0:00:34]} Rxf5 {[%emt 0:00:29]} 52. gxf7+ {[%emt 0:00:07]} Rxf7 {[%emt 0:02:18]} 53. Rxf7 {[%emt 0:00:37]} Kxf7 {[%emt 0:00:03]} 54. c6 {[%emt 0:00:05]} Ke7 {[%emt 0:01:36]} 55. d5 {[%emt 0:00:04]} Bb4 {[%emt 0:00:46]} 56. Bg5+ {[%emt 0:00:22]} Ke8 {[%emt 0:01:05]} 57. Ke3 {[%emt 0:00:14]} Be7 {[%emt 0:01:02]} 58. Bf4 {[%emt 0:01:41]} g5 {[%emt 0:00:18]} 59. Be5 {[%emt 0:00:04]} g4 {[%emt 0:00:22]} 60. Kxe4 {[%emt 0:00:13]} h4 {[%emt 0:00:29]} 61. d6 {[%emt 0:00:47]} Bf8 {[%emt 0:01:19]} 62. Kf4 {[%emt 0:00:31]} g3 {[%emt 0:00:15]} 63. Kf3 {[%emt 0:00:07]} Bh6 {[%emt 0:00:54]} 64. d7+ {[%emt 0:00:27]} Ke7 {[%emt 0:00:29]} 65. Bc7 {[%emt 0:00:27]} 1-0

[Event "Kragero Resort International 2022"]
[Site "Kragero"]
[Date "2022.02.27"]
[Round "9.4"]
[White "Alvanjyan, Aida"]
[Black "Amundsen, Ask"]
[Result "1-0"]
[ECO "B22"]
[WhiteElo "1566"]
[BlackElo "1819"]
[Annotator "NA"]
[PlyCount "63"]
[EventDate "2022.02.23"]
[EventType "swiss"]
[EventCountry "NOR"]
[SourceTitle "playchess.com"]
[Source "ChessBase"]
[SourceQuality "1"]
[TimeControl "5400+30"]

1. e4 {[%emt 0:01:25]} c5 {[%emt 0:00:07]} 2. c3 {[%emt 0:00:29]} Nf6 {[%emt 0:00:09]} 3. e5 {[%emt 0:00:03]} Nd5 {[%emt 0:00:06]} 4. d4 {[%emt 0:00:05]} cxd4 {[%emt 0:00:07]} 5. cxd4 {[%emt 0:00:01]} e6 $11 {[%emt 0:00:38]} 6. Nf3 {[%emt 0:00:43]} d6 {[%emt 0:00:15]} 7. exd6 {[%emt 0:00:52]} Bxd6 {[%emt 0:00:15]} 8. Nc3 {[%emt 0:00:11]} Nxc3 {[%emt 0:00:47]} 9. bxc3 {[%emt 0:00:05]} Qc7 {[%emt 0:00:17]} 10. Bd2 {[%emt 0:03:57]} Nd7 {[%emt 0:02:21]} 11. Bd3 {[%emt 0:02:28]} O-O {[%emt 0:03:06]} 12. O-O {[%emt 0:01:24]} b6 {[%emt 0:00:24]} 13. Re1 {[%emt 0:06:15]} Bb7 {[%emt 0:02:04]} 14. Rc1 {[%emt 0:02:47]} Bxf3 {[%emt 0:04:39]} 15. Qxf3 {[%emt 0:00:09]} Bxh2+ {[%emt 0:00:10]} 16. Kh1 {[%emt 0:00:59]} Bd6 {[%emt 0:00:26]} 17. Re4 {[%emt 0:02:54]} Rfe8 {[%emt 0:17:45]} 18. Rh4 {[%emt 0:02:04]} g6 {[%emt 0:18:13]} 19. Re1 {[%emt 0:04:58]} Nf8 {[%emt 0:09:13]} 20. Bh6 {[%emt 0:14:04]} Be7 {[%emt 0:03:02]} 21. Rf4 {[%emt 0:07:07]} f5 {[%emt 0:14:01]} 22. Bb5 {[%emt 0:07:13]} Rec8 {[%emt 0:01:44]} 23. Bxf8 {[%emt 0:05:53]} Bxf8 {[%emt 0:00:32]} 24. Qe3 {[%emt 0:11:42]} Qxc3 {[%emt 0:04:53]} 25. Qxe6+ {[%emt 0:01:35]} Kh8 {[%emt 0:00:11]} 26. Rh4 {[%emt 0:03:48]} Qb4 {[%emt 0:06:53]} 27. Bf1 {[%emt 0:06:30]} Qd6 {[%emt 0:09:28]} 28. Qf7 {[%emt 0:00:41]} h6 {[%emt 0:02:09]} 29. Re6 {[%emt 0:01:31]} Qd8 {[%emt 0:00:27]} 30. Rxg6 {[%emt 0:07:51]} Qxh4+ {[%emt 0:00:31]} 31. Kg1 {[%emt 0:00:02]} Bd6 {[%emt 0:00:35]} 32. Qg7# {[%emt 0:00:04]} 1-0

[Event "Kragero Resort International 2022"]
[Site "Kragero"]
[Date "2022.02.27"]
[Round "9.5"]
[White "Strand, Amund Pihl"]
[Black "Thorisson, Benedikt"]
[Result "0-1"]
[ECO "A29"]
[WhiteElo "1748"]
[BlackElo "1790"]
[Annotator "NA"]
[PlyCount "86"]
[EventDate "2022.02.23"]
[EventType "swiss"]
[EventCountry "NOR"]
[SourceTitle "playchess.com"]
[Source "ChessBase"]
[SourceQuality "1"]
[TimeControl "5400+30"]

1. c4 {[%emt 0:27:18]} e5 {[%emt 0:00:07]} 2. Nc3 {[%emt 0:00:55]} Nf6 {[%emt 0:00:08]} 3. g3 {[%emt 0:00:04]} d5 {[%emt 0:00:11]} 4. cxd5 {[%emt 0:00:04]} Nxd5 {[%emt 0:00:10]} 5. Bg2 {[%emt 0:00:02]} Nb6 {[%emt 0:00:19]} 6. Nf3 {[%emt 0:00:09]} Nc6 {[%emt 0:00:17]} 7. d3 {[%emt 0:00:25]} Be7 {[%emt 0:00:46]} 8. O-O {[%emt 0:00:11]} O-O {[%emt 0:01:14]} 9. Be3 {[%emt 0:04:03]} Be6 {[%emt 0:01:03]} 10. Ne4 {[%emt 0:02:13]} Nd5 {[%emt 0:05:54]} 11. Bc5 {[%emt 0:05:05]} h6 {[%emt 0:02:12]} 12. a3 {[%emt 0:04:33]} f5 {[%emt 0:01:21]} 13. Bxe7 {[%emt 0:00:31]} Qxe7 {[%emt 0:00:07]} 14. Nc3 {[%emt 0:02:17]} Rad8 {[%emt 0:03:11]} 15. Qa4 {[%emt 0:08:20]} Kh8 {[%emt 0:06:22]} 16. Qh4 {[%emt 0:06:55]} Qxh4 {[%emt 0:05:01]} 17. Nxh4 {[%emt 0:04:23]} Kh7 {[%emt 0:02:14]} 18. Nxd5 {[%emt 0:02:12]} Bxd5 {[%emt 0:00:09]} 19. Bxd5 {[%emt 0:00:10]} Rxd5 {[%emt 0:00:04]} 20. Nxf5 {[%emt 0:00:09]} Rb5 {[%emt 0:00:56]} 21. Ne3 {[%emt 0:06:48]} Nd4 {[%emt 0:03:15]} 22. Rfe1 {[%emt 0:06:28]} Rxb2 {[%emt 0:08:16]} 23. Kf1 {[%emt 0:06:34]} Nb3 {[%emt 0:08:04]} 24. Nc4 {[%emt 0:02:07]} Nxa1 {[%emt 0:01:52]} 25. Nxb2 {[%emt 0:00:05]} Nb3 {[%emt 0:00:46]} 26. Nc4 {[%emt 0:00:25]} Re8 {[%emt 0:01:03]} 27. Rb1 {[%emt 0:00:15]} Nc5 {[%emt 0:00:34]} 28. Nxe5 {[%emt 0:03:23]} Rxe5 {[%emt 0:01:15]} 29. d4 {[%emt 0:00:04]} Ne4 {[%emt 0:00:26]} 30. Rxb7 {[%emt 0:00:15]} Ra5 {[%emt 0:01:20]} 31. Rxc7 {[%emt 0:00:11]} Rxa3 {[%emt 0:00:26]} 32. Re7 {[%emt 0:04:19]} Nf6 {[%emt 0:02:29]} 33. e4 {[%emt 0:00:27]} Ra4 {[%emt 0:01:08]} 34. Ke2 {[%emt 0:03:02]} Rxd4 {[%emt 0:07:27]} 35. e5 {[%emt 0:00:15]} Nd7 {[%emt 0:02:56]} 36. Ke3 {[%emt 0:00:28]} Rd1 {[%emt 0:00:48]} 37. f4 {[%emt 0:00:42]} a5 {[%emt 0:00:56]} 38. e6 {[%emt 0:01:41]} Nf6 {[%emt 0:03:07]} 39. Ke2 {[%emt 0:00:25]} Rd6 {[%emt 0:02:17]} 40. f5 {[%emt 0:00:22]} Rd5 {[%emt 0:00:57]} 41. g4 {[%emt 0:00:34]} Nxg4 {[%emt 0:00:46]} 42. Rf7 {[%emt 0:00:15]} Kg8 {[%emt 0:01:14]} 43. Rd7 {[%emt 0:00:56]} Rxf5 {[%emt 0:02:47]} 0-1

[Event "Kragero Resort International 2022"]
[Site "Kragero"]
[Date "2022.02.27"]
[Round "9.6"]
[White "Haugen, Lars Tormod"]
[Black "Carlin, Tormod"]
[Result "1-0"]
[ECO "A17"]
[WhiteElo "1710"]
[BlackElo "1630"]
[Annotator "NA"]
[PlyCount "51"]
[EventDate "2022.02.23"]
[EventType "swiss"]
[EventCountry "NOR"]
[SourceTitle "playchess.com"]
[Source "ChessBase"]
[SourceQuality "1"]
[TimeControl "5400+30"]

1. c4 {[%emt 0:00:04]} e6 {[%emt 0:00:54]} 2. Nc3 {[%emt 0:00:57]} d5 {[%emt 0:00:05]} 3. e3 {[%emt 0:00:05]} Nf6 {[%emt 0:00:12]} 4. Nf3 {[%emt 0:00:17]} Be7 {[%emt 0:00:08]} 5. b3 {[%emt 0:02:05]} b6 {[%emt 0:00:32]} 6. cxd5 {[%emt 0:01:50]} exd5 {[%emt 0:00:45]} 7. Bb2 {[%emt 0:01:33]} Bb7 {[%emt 0:00:14]} 8. d4 {[%emt 0:04:53]} O-O {[%emt 0:00:13]} 9. Bd3 {[%emt 0:03:10]} Nc6 {[%emt 0:02:22]} 10. Rc1 {[%emt 0:01:51]} a6 {[%emt 0:00:31]} 11. O-O {[%emt 0:00:52]} Bd6 {[%emt 0:00:11]} 12. Ne2 {[%emt 0:06:35]} Ne7 {[%emt 0:01:55]} 13. Ne5 {[%emt 0:11:56]} Ng6 {[%emt 0:00:44]} 14. Ng3 {[%emt 0:06:34]} Nd7 {[%emt 0:03:46]} 15. f4 {[%emt 0:04:44]} Ne7 {[%emt 0:06:23]} 16. Nh5 {[%emt 0:15:14]} Ng6 {[%emt 0:03:12]} 17. Nxd7 {[%emt 0:11:15]} Qxd7 {[%emt 0:00:17]} 18. f5 {[%emt 0:00:36]} Qe7 {[%emt 0:04:40]} 19. fxg6 {[%emt 0:11:01]} Qxe3+ {[%emt 0:00:07]} 20. Kh1 {[%emt 0:01:34]} fxg6 {[%emt 0:00:12]} 21. Ng3 {[%emt 0:00:52]} Qh6 {[%emt 0:05:13]} 22. Qe1 {[%emt 0:02:09]} Rfe8 {[%emt 0:02:23]} 23. Qf2 {[%emt 0:02:23]} Bc8 {[%emt 0:01:14]} 24. Qf7+ {[%emt 0:01:25]} Kh8 {[%emt 0:00:10]} 25. Qxe8+ {[%emt 0:00:13]} Bf8 {[%emt 0:00:03]} 26. Qxf8# {[%emt 0:00:37]} 1-0

[Event "Kragero Resort International 2022"]
[Site "Kragero"]
[Date "2022.02.27"]
[Round "9.7"]
[White "Johannessen, Martin T."]
[Black "Madsen, Morten L"]
[Result "1-0"]
[ECO "D13"]
[WhiteElo "1629"]
[BlackElo "1828"]
[Annotator "NA"]
[PlyCount "91"]
[EventDate "2022.02.23"]
[EventType "swiss"]
[EventCountry "NOR"]
[SourceTitle "playchess.com"]
[Source "ChessBase"]
[SourceQuality "1"]
[TimeControl "5400+30"]

1. d4 {[%emt 0:00:17]} d5 {[%emt 0:06:16]} 2. c4 {[%emt 0:00:30]} c6 {[%emt 0:00:00]} 3. cxd5 {[%emt 0:00:30]} cxd5 {[%emt 0:00:00]} 4. Bf4 {[%emt 0:00:30]} Nc6 {[%emt 0:00:21]} 5. Nf3 {[%emt 0:00:30]} Nf6 {[%emt 0:06:21]} 6. Nc3 {[%emt 0:11:29]} e6 {[%emt 0:08:23]} 7. e3 {[%emt 0:10:22]} Bd7 {[%emt 0:00:44]} 8. a3 $14 {[%emt 0:02:48]} Be7 9. Bd3 {[%emt 0:00:44]} O-O 10. O-O {[%emt 0:01:29]} Nh5 11. Bg3 {[%emt 0:03:25]} Nxg3 {[%emt 0:00:09]} 12. hxg3 {[%emt 0:10:39]} a6 13. Rc1 {[%emt 0:10:50]} b5 14. e4 {[%emt 0:15:43]} dxe4 {[%emt 0:02:51]} 15. Nxe4 {[%emt 0:15:57]} h6 {[%emt 0:05:14]} 16. Nc5 {[%emt 0:07:22]} Bf6 {[%emt 0:45:22]} 17. Be4 {[%emt 0:06:51]} Be8 {[%emt 0:05:00]} 18. Nxe6 {[%emt 0:00:00]} fxe6 {[%emt 0:01:16]} 19. Bxc6 {[%emt 0:00:00]} Bxc6 20. Rxc6 {[%emt 0:00:00]} Qd7 21. Qc2 {[%emt 0:12:55]} Bxd4 {[%emt 0:00:15]} 22. Nxd4 {[%emt 0:00:00]} Qxd4 23. Rxe6 {[%emt 0:01:04]} a5 {[%emt 0:13:05]} 24. Qb3 {[%emt 0:00:00]} Qc4 {[%emt 0:04:09]} 25. Qxc4 {[%emt 0:00:00]} bxc4 {[%emt 0:03:18]} 26. Rc6 {[%emt 0:00:00]} Rfc8 {[%emt 0:00:00]} 27. Rxc8+ {[%emt 0:00:00]} Rxc8 {[%emt 0:00:00]} 28. Rc1 {[%emt 0:00:00]} a4 {[%emt 0:00:00]} 29. Kf1 {[%emt 0:00:34]} Kf7 {[%emt 0:00:00]} 30. Ke2 {[%emt 0:00:00]} Ke6 {[%emt 0:00:00]} 31. Kd2 {[%emt 0:00:00]} Kd5 {[%emt 0:00:00]} 32. Kc3 {[%emt 0:01:38]} Rb8 {[%emt 0:00:00]} 33. Rd1+ {[%emt 0:00:00]} Kc6 {[%emt 0:00:28]} 34. Rd4 {[%emt 0:00:00]} Rb3+ {[%emt 0:00:22]} 35. Kc2 {[%emt 0:02:16]} Kc5 {[%emt 0:00:42]} 36. Rd7 {[%emt 0:00:00]} g5 {[%emt 0:00:37]} 37. Ra7 {[%emt 0:03:47]} c3 {[%emt 0:02:14]} 38. Rc7+ {[%emt 0:01:36]} Kd5 {[%emt 0:00:28]} 39. Rxc3 {[%emt 0:00:06]} Rb7 {[%emt 0:09:55]} 40. b3 {[%emt 0:00:00]} axb3+ {[%emt 0:00:00]} 41. Rxb3 {[%emt 0:00:00]} Rf7 {[%emt 0:00:00]} 42. Rf3 {[%emt 0:00:00]} Rxf3 {[%emt 0:00:00]} 43. gxf3 {[%emt 0:00:00]} h5 {[%emt 0:00:00]} 44. Kd2 {[%emt 0:00:00]} h4 {[%emt 0:00:00]} 45. Ke2 {[%emt 0:00:00]} h3 {[%emt 0:00:00]} 46. Kf1 {[%emt 0:00:00]} 1-0